[Event "*** SCC Grand Prix: Titled Tuesday Blitz"]
[Site "Chess.com"]
[Date "2020.07.07"]
[Round "5"]
[White "malandragem"]
[Black "Benjoneliere44"]
[Result "0-1"]
[WhiteElo "2383"]
[BlackElo "2532"]
[TimeControl "180+1"]
[EndTime "10:58:55 PDT"]
[Termination "Benjoneliere44 won by resignation"]

1. a3 {[%clk 0:03:00.9]} 1... Nf6 {[%clk 0:02:58.9]} 2. Nf3 {[%clk 0:03:00.2]}
2... g6 {[%clk 0:02:59.8]} 3. g3 {[%clk 0:02:58.7]} 3... Bg7 {[%clk 0:03:00.7]}
4. Bg2 {[%clk 0:02:59.3]} 4... O-O {[%clk 0:03:01.3]} 5. O-O {[%clk 0:03:00.2]}
5... d6 {[%clk 0:03:00.3]} 6. d3 {[%clk 0:03:00.2]} 6... e5 {[%clk 0:03:00.3]}
7. c4 {[%clk 0:02:50.3]} 7... a5 {[%clk 0:02:55.9]} 8. Nc3 {[%clk 0:02:45.6]}
8... Nc6 {[%clk 0:02:56.3]} 9. Rb1 {[%clk 0:02:43.7]} 9... h6 {[%clk 0:02:51.1]}
10. b4 {[%clk 0:02:38.5]} 10... axb4 {[%clk 0:02:52]} 11. axb4 {[%clk
0:02:38.9]} 11... Be6 {[%clk 0:02:51.7]} 12. b5 {[%clk 0:02:37.3]} 12... Nd4
{[%clk 0:02:51.9]} 13. Nd2 {[%clk 0:02:36.9]} 13... Qc8 {[%clk 0:02:47.9]} 14.
e3 {[%clk 0:02:36.9]} 14... Nf5 {[%clk 0:02:47.9]} 15. Bb2 {[%clk 0:02:34.9]}
15... Ne7 {[%clk 0:02:45.7]} 16. Qb3 {[%clk 0:02:34.3]} 16... Bh3 {[%clk
0:02:44.2]} 17. Ra1 {[%clk 0:02:30.6]} 17... Bxg2 {[%clk 0:02:43.4]} 18. Kxg2
{[%clk 0:02:31.5]} 18... h5 {[%clk 0:02:39.4]} 19. Rxa8 {[%clk 0:02:26.4]} 19...
Qxa8 {[%clk 0:02:40.3]} 20. Nd5 {[%clk 0:02:26.8]} 20... Nexd5 {[%clk
0:02:38.3]} 21. cxd5 {[%clk 0:02:26.7]} 21... h4 {[%clk 0:02:36.7]} 22. h3
{[%clk 0:02:10.4]} 22... hxg3 {[%clk 0:02:35.1]} 23. fxg3 {[%clk 0:02:11.3]}
23... c6 {[%clk 0:02:25.5]} 24. dxc6 {[%clk 0:02:01.2]} 24... bxc6 {[%clk
0:02:26.4]} 25. e4 {[%clk 0:02:01.7]} 25... Rb8 {[%clk 0:02:16.9]} 26. b6 {[%clk
0:01:59.8]} 26... Qa6 {[%clk 0:02:10.7]} 27. Nc4 {[%clk 0:01:50.9]} 27... Qb5
{[%clk 0:02:06.8]} 28. Qxb5 {[%clk 0:01:35.6]} 28... cxb5 {[%clk 0:02:07.7]} 29.
Nxd6 {[%clk 0:01:36]} 29... Rxb6 {[%clk 0:02:07.5]} 30. Bxe5 {[%clk 0:01:34.4]}
30... Nxe4 {[%clk 0:02:06.6]} 31. Bxg7 {[%clk 0:01:31.8]} 31... Nxd6 {[%clk
0:02:05.5]} 32. Bd4 {[%clk 0:01:29.4]} 32... Rc6 {[%clk 0:02:02.3]} 33. Be5
{[%clk 0:01:27.9]} 33... Nf5 {[%clk 0:01:50.9]} 34. Rb1 {[%clk 0:01:23.1]} 34...
f6 {[%clk 0:01:50.8]} 35. Ba1 {[%clk 0:01:09.8]} 35... Rb6 {[%clk 0:01:45.5]}
36. Kf3 {[%clk 0:01:06]} 36... Kf7 {[%clk 0:01:40.9]} 37. g4 {[%clk 0:01:06.2]}
37... Nd6 {[%clk 0:01:37.3]} 38. Ke3 {[%clk 0:00:48.4]} 38... Ke6 {[%clk
0:01:31]} 39. Bd4 {[%clk 0:00:41.1]} 39... Rb7 {[%clk 0:01:27.1]} 40. Bc5 {[%clk
0:00:41.4]} 40... Nf7 {[%clk 0:01:13]} 41. h4 {[%clk 0:00:29.4]} 41... Ne5
{[%clk 0:01:11.5]} 42. Rb4 {[%clk 0:00:23]} 42... Kd5 {[%clk 0:01:08.8]} 43. Bf8
{[%clk 0:00:21.6]} 43... Nc6 {[%clk 0:01:04.4]} 44. Rf4 {[%clk 0:00:20]} 44...
Rf7 {[%clk 0:01:04.2]} 45. Bb4 {[%clk 0:00:19.1]} 45... f5 {[%clk 0:01:01]} 46.
g5 {[%clk 0:00:18.8]} 46... Rh7 {[%clk 0:00:58.2]} 47. Bf8 {[%clk 0:00:15.2]}
47... Rb7 {[%clk 0:00:51.5]} 48. h5 {[%clk 0:00:13.6]} 48... Rf7 {[%clk
0:00:32]} 49. Ba3 {[%clk 0:00:08.8]} 49... gxh5 {[%clk 0:00:30.9]} 50. g6 {[%clk
0:00:09.2]} 50... Rf6 {[%clk 0:00:23.1]} 51. g7 {[%clk 0:00:08.9]} 51... Rg6
{[%clk 0:00:20.8]} 52. Rxf5+ {[%clk 0:00:09.4]} 52... Ke6 {[%clk 0:00:21.2]} 53.
Rxb5 {[%clk 0:00:08.4]} 53... Ne5 {[%clk 0:00:20.5]} 54. Bb2 {[%clk 0:00:07.6]}
54... Ng4+ {[%clk 0:00:18.7]} 55. Kf4 {[%clk 0:00:06.3]} 55... Kf7 {[%clk
0:00:19.4]} 56. Rxh5 {[%clk 0:00:06.3]} 56... Nh6 {[%clk 0:00:17.9]} 57. Rg5
{[%clk 0:00:04.6]} 57... Rb6 {[%clk 0:00:15.6]} 58. Rf5+ {[%clk 0:00:04.4]}
58... Kg6 {[%clk 0:00:14.7]} 59. Bd4 {[%clk 0:00:04.4]} 59... Rb4 {[%clk
0:00:14.3]} 60. Rd5 {[%clk 0:00:04.1]} 60... Kh7 {[%clk 0:00:12.8]} 61. Ke3
{[%clk 0:00:04.2]} 61... Rb1 {[%clk 0:00:12.5]} 62. Kd2 {[%clk 0:00:04.5]} 62...
Rh1 {[%clk 0:00:11.4]} 63. Rd8 {[%clk 0:00:03.7]} 63... Ng8 {[%clk 0:00:11.1]}
64. Kc3 {[%clk 0:00:03]} 64... Rh4 {[%clk 0:00:10]} 65. Kc4 {[%clk 0:00:03.1]}
65... Ne7 {[%clk 0:00:07.9]} 66. Rd7 {[%clk 0:00:02.8]} 66... Nf5 {[%clk
0:00:07.3]} 67. g8=Q+ {[%clk 0:00:03.3]} 67... Kxg8 {[%clk 0:00:07.2]} 68. Rd8+
{[%clk 0:00:04]} 68... Kf7 {[%clk 0:00:07.6]} 69. Kc3 {[%clk 0:00:04.4]} 69...
Ke6 {[%clk 0:00:07.1]} 70. Bc5 {[%clk 0:00:03.9]} 70... Rh3 {[%clk 0:00:06.6]}
71. Kc4 {[%clk 0:00:03.7]} 71... Rh1 {[%clk 0:00:06.2]} 72. d4 {[%clk
0:00:03.4]} 72... Rc1+ {[%clk 0:00:06.7]} 73. Kb5 {[%clk 0:00:04.1]} 73... Rb1+
{[%clk 0:00:06.9]} 74. Kc6 {[%clk 0:00:04.6]} 74... Rc1 {[%clk 0:00:07.8]} 75.
Rh8 {[%clk 0:00:04]} 75... Kf7 {[%clk 0:00:08]} 76. d5 {[%clk 0:00:04.2]} 76...
Nd4+ {[%clk 0:00:07.5]} 77. Kd7 {[%clk 0:00:04]} 77... Nf5 {[%clk 0:00:08.4]}
78. Kc6 {[%clk 0:00:04.2]} 78... Nd4+ {[%clk 0:00:08.3]} 79. Kb6 {[%clk
0:00:04.7]} 79... Nb3 {[%clk 0:00:07.8]} 80. Bb4 {[%clk 0:00:04.4]} 80... Rb1
{[%clk 0:00:07]} 81. Rh4 {[%clk 0:00:04.6]} 81... Nd2 {[%clk 0:00:06.5]} 82. d6
{[%clk 0:00:04.6]} 82... Ke6 {[%clk 0:00:05.4]} 83. Kc6 {[%clk 0:00:04.8]} 83...
Rc1+ {[%clk 0:00:04]} 84. Bc5 {[%clk 0:00:04.5]} 84... Nc4 {[%clk 0:00:03.2]}
85. Rh6+ {[%clk 0:00:05]} 85... Kf7 {[%clk 0:00:03]} 86. d7 {[%clk 0:00:05.5]}
86... Ne5+ {[%clk 0:00:03.3]} 87. Kb7 {[%clk 0:00:04.7]} 87... Nxd7 {[%clk
0:00:02.6]} 88. Rh7+ {[%clk 0:00:05.2]} 88... Ke8 {[%clk 0:00:02.3]} 89. Re7+
{[%clk 0:00:05.3]} 89... Kd8 {[%clk 0:00:02.5]} 90. Rh7 {[%clk 0:00:03.9]} 90...
Rxc5 {[%clk 0:00:02.2]} 91. Ka6 {[%clk 0:00:03.3]} 91... Re5 {[%clk 0:00:01.6]}
92. Kb7 {[%clk 0:00:02.2]} 92... Rb5+ {[%clk 0:00:01.1]} 93. Kc6 {[%clk
0:00:01.8]} 93... Rc5+ {[%clk 0:00:02]} 94. Kb7 {[%clk 0:00:01.8]} 94... Rf5
{[%clk 0:00:02.8]} 95. Kc6 {[%clk 0:00:02]} 95... Ke8 {[%clk 0:00:03.3]} 96.
Rxd7 {[%clk 0:00:01.4]} 96... Rf4 {[%clk 0:00:03.3]} 97. Rd5 {[%clk 0:00:01.7]}
97... Ke7 {[%clk 0:00:03.7]} 98. Kc5 {[%clk 0:00:02.6]} 98... Ke6 {[%clk
0:00:04.2]} 99. Rd4 {[%clk 0:00:03.1]} 99... Rf5+ {[%clk 0:00:04.2]} 100. Kc4
{[%clk 0:00:03.2]} 100... Rf8 {[%clk 0:00:05.1]} 101. Rd1 {[%clk 0:00:03.9]}
101... Rc8+ {[%clk 0:00:05.7]} 102. Kb3 {[%clk 0:00:04.5]} 102... Rb8+ {[%clk
0:00:06]} 103. Kc2 {[%clk 0:00:05.4]} 103... Ra8 {[%clk 0:00:06.9]} 104. Rd3
{[%clk 0:00:06.3]} 104... Ke5 {[%clk 0:00:07.2]} 105. Kd2 {[%clk 0:00:07.2]}
105... Ke4 {[%clk 0:00:07.7]} 106. Ra3 {[%clk 0:00:07.8]} 106... Rxa3 {[%clk
0:00:07]} 107. Kc2 {[%clk 0:00:08]} 107... Rd3 {[%clk 0:00:07.9]} 0-1

[Event "*** SCC Grand Prix: Titled Tuesday Blitz"]
[Site "Chess.com"]
[Date "2020.07.07"]
[Round "6"]
[White "lucachess49"]
[Black "mr65"]
[Result "1-0"]
[WhiteElo "2387"]
[BlackElo "2101"]
[TimeControl "180+1"]
[EndTime "11:00:34 PDT"]
[Termination "lucachess49 won by resignation"]

1. d4 {[%clk 0:03:00.9]} 1... Nf6 {[%clk 0:02:58.9]} 2. c4 {[%clk 0:03:01.1]}
2... g6 {[%clk 0:02:58.7]} 3. f3 {[%clk 0:03:00.5]} 3... Bg7 {[%clk 0:02:58.5]}
4. e4 {[%clk 0:03:00.9]} 4... d6 {[%clk 0:02:58]} 5. Nc3 {[%clk 0:03:00.7]} 5...
O-O {[%clk 0:02:57.6]} 6. Nge2 {[%clk 0:03:01.3]} 6... Nc6 {[%clk 0:02:57.3]} 7.
Be3 {[%clk 0:03:01]} 7... a6 {[%clk 0:02:57]} 8. Qd2 {[%clk 0:03:01.3]} 8... Rb8
{[%clk 0:02:56.4]} 9. Rc1 {[%clk 0:02:54.3]} 9... b5 {[%clk 0:02:43.3]} 10. cxb5
{[%clk 0:02:53.6]} 10... axb5 {[%clk 0:02:42.4]} 11. Nxb5 {[%clk 0:02:53.8]}
11... Na5 {[%clk 0:02:34.4]} 12. Qxa5 {[%clk 0:02:44.8]} 1-0

[Event "*** SCC Grand Prix: Titled Tuesday Blitz"]
[Site "Chess.com"]
[Date "2020.07.07"]
[Round "6"]
[White "DenisQ"]
[Black "CarlosAlbornoz"]
[Result "0-1"]
[WhiteElo "2656"]
[BlackElo "2808"]
[TimeControl "180+1"]
[EndTime "11:00:52 PDT"]
[Termination "CarlosAlbornoz won by checkmate"]

1. Nf3 {[%clk 0:03:00.9]} 1... Nf6 {[%clk 0:03:00]} 2. g3 {[%clk 0:03:00.3]}
2... g6 {[%clk 0:03:00.9]} 3. Bg2 {[%clk 0:03:00.6]} 3... Bg7 {[%clk 0:03:01.3]}
4. Kf1 {[%clk 0:03:01.5]} 4... O-O {[%clk 0:03:02.2]} 5. d3 {[%clk 0:02:58]}
5... d5 {[%clk 0:03:02.2]} 6. Nbd2 {[%clk 0:02:56.8]} 6... c5 {[%clk 0:03:02.5]}
7. e4 {[%clk 0:02:49.7]} 7... dxe4 {[%clk 0:03:01.4]} 8. dxe4 {[%clk 0:02:47.1]}
8... Nxe4 {[%clk 0:03:00.4]} 9. Ke2 {[%clk 0:02:45.1]} 9... Nxd2 {[%clk
0:02:44.6]} 10. Qxd2 {[%clk 0:02:43.6]} 10... Qb6 {[%clk 0:02:42.4]} 11. c3
{[%clk 0:02:41.8]} 11... Rd8 {[%clk 0:02:38.7]} 12. Qe3 {[%clk 0:02:39.8]} 12...
Qa6+ {[%clk 0:02:36.4]} 13. Ke1 {[%clk 0:02:39.5]} 13... Nc6 {[%clk 0:02:35]}
14. Bf1 {[%clk 0:02:39.1]} 14... Qa4 {[%clk 0:02:28.7]} 15. h3 {[%clk
0:02:34.5]} 15... Qd1# {[%clk 0:02:27.1]} 0-1

[Event "*** SCC Grand Prix: Titled Tuesday Blitz"]
[Site "Chess.com"]
[Date "2020.07.07"]
[Round "6"]
[White "1977Ivan"]
[Black "BigAl"]
[Result "1-0"]
[WhiteElo "2687"]
[BlackElo "2503"]
[TimeControl "180+1"]
[EndTime "11:01:27 PDT"]
[Termination "1977Ivan won by resignation"]

1. c4 {[%clk 0:03:00.9]} 1... Nf6 {[%clk 0:02:59.3]} 2. Nc3 {[%clk 0:03:01.5]}
2... g6 {[%clk 0:02:59.6]} 3. g3 {[%clk 0:03:02]} 3... Bg7 {[%clk 0:02:59.4]} 4.
Bg2 {[%clk 0:03:02.5]} 4... O-O {[%clk 0:03:00.2]} 5. Nf3 {[%clk 0:03:02.9]}
5... d6 {[%clk 0:03:00.8]} 6. d4 {[%clk 0:03:03.4]} 6... Nbd7 {[%clk 0:02:59.9]}
7. Bf4 {[%clk 0:03:02.7]} 7... e5 {[%clk 0:03:00.8]} 8. dxe5 {[%clk 0:03:01.8]}
8... dxe5 {[%clk 0:02:48.4]} 9. Nxe5 {[%clk 0:03:01.4]} 9... Nh5 {[%clk
0:02:45.8]} 10. Nxd7 {[%clk 0:02:59.1]} 10... Nxf4 {[%clk 0:02:45]} 11. gxf4
{[%clk 0:02:30.2]} 11... Bxd7 {[%clk 0:02:42.4]} 12. O-O {[%clk 0:02:30.2]}
12... c6 {[%clk 0:02:23.3]} 13. e3 {[%clk 0:02:29.4]} 13... Qe7 {[%clk 0:02:20]}
14. Ne4 {[%clk 0:02:20.4]} 14... Qh4 {[%clk 0:02:09.2]} 15. Qxd7 {[%clk
0:02:18.1]} 1-0

[Event "*** SCC Grand Prix: Titled Tuesday Blitz"]
[Site "Chess.com"]
[Date "2020.07.07"]
[Round "6"]
[White "Bastiandash"]
[Black "K-Nygren"]
[Result "0-1"]
[WhiteElo "2322"]
[BlackElo "2467"]
[TimeControl "180+1"]
[EndTime "11:01:52 PDT"]
[Termination "K-Nygren won by resignation"]

1. d4 {[%clk 0:03:00.9]} 1... d5 {[%clk 0:02:59.8]} 2. Nf3 {[%clk 0:03:00.9]}
2... Nf6 {[%clk 0:02:59.8]} 3. c3 {[%clk 0:03:01]} 3... c6 {[%clk 0:02:59.7]} 4.
Bg5 {[%clk 0:03:01.5]} 4... Nbd7 {[%clk 0:02:59.3]} 5. e3 {[%clk 0:03:01.2]}
5... Ne4 {[%clk 0:02:59.7]} 6. Bf4 {[%clk 0:02:59.9]} 6... h6 {[%clk 0:02:59.6]}
7. Nbd2 {[%clk 0:02:59.5]} 7... g5 {[%clk 0:02:59]} 8. Bg3 {[%clk 0:02:57.1]}
8... Nxg3 {[%clk 0:02:59.2]} 9. hxg3 {[%clk 0:02:58]} 9... Bg7 {[%clk
0:02:59.6]} 10. Bd3 {[%clk 0:02:57]} 10... Nf6 {[%clk 0:02:59.2]} 11. e4 {[%clk
0:02:56.6]} 11... dxe4 {[%clk 0:02:59]} 12. Nxe4 {[%clk 0:02:57.5]} 12... Nxe4
{[%clk 0:02:57.9]} 13. Bxe4 {[%clk 0:02:58.4]} 13... Be6 {[%clk 0:02:57.1]} 14.
Qe2 {[%clk 0:02:50.5]} 14... Qc7 {[%clk 0:02:53.6]} 15. O-O {[%clk 0:02:47.6]}
15... Bg4 {[%clk 0:02:46.6]} 16. Qd3 {[%clk 0:02:45]} 16... O-O-O {[%clk
0:02:41.1]} 17. Bf5+ {[%clk 0:02:43.3]} 17... Bxf5 {[%clk 0:02:41.2]} 18. Qxf5+
{[%clk 0:02:44.2]} 18... e6 {[%clk 0:02:41.7]} 19. Qe4 {[%clk 0:02:42.2]} 19...
Kb8 {[%clk 0:02:34.4]} 20. a4 {[%clk 0:02:32.4]} 20... Bf6 {[%clk 0:02:28.5]}
21. Rfe1 {[%clk 0:02:27.1]} 21... h5 {[%clk 0:02:27.8]} 22. Ne5 {[%clk
0:02:26.9]} 22... h4 {[%clk 0:02:21.4]} 23. gxh4 {[%clk 0:02:10.5]} 23... Rxh4
{[%clk 0:02:19.5]} 24. a5 {[%clk 0:02:10.1]} 24... Rxe4 {[%clk 0:02:18.8]} 0-1

[Event "*** SCC Grand Prix: Titled Tuesday Blitz"]
[Site "Chess.com"]
[Date "2020.07.07"]
[Round "6"]
[White "vinniethepooh"]
[Black "ajdemipopushi"]
[Result "1-0"]
[WhiteElo "2555"]
[BlackElo "2359"]
[TimeControl "180+1"]
[EndTime "11:02:13 PDT"]
[Termination "vinniethepooh won by resignation"]

1. d4 {[%clk 0:03:00.9]} 1... Nf6 {[%clk 0:02:59.5]} 2. c4 {[%clk 0:03:01.3]}
2... c5 {[%clk 0:02:59.7]} 3. d5 {[%clk 0:03:01.2]} 3... b5 {[%clk 0:03:00]} 4.
cxb5 {[%clk 0:03:00.9]} 4... a6 {[%clk 0:03:00.4]} 5. bxa6 {[%clk 0:03:00.9]}
5... Bxa6 {[%clk 0:03:00.6]} 6. Nc3 {[%clk 0:03:01.3]} 6... g6 {[%clk 0:03:01]}
7. e4 {[%clk 0:03:01.6]} 7... Bxf1 {[%clk 0:03:00.4]} 8. Kxf1 {[%clk 0:03:02.5]}
8... d6 {[%clk 0:03:01.2]} 9. g3 {[%clk 0:03:02.2]} 9... Bg7 {[%clk 0:03:01.6]}
10. Kg2 {[%clk 0:03:02.8]} 10... O-O {[%clk 0:03:02.2]} 11. Nf3 {[%clk
0:03:02.8]} 11... Nbd7 {[%clk 0:03:02.5]} 12. a4 {[%clk 0:03:03.1]} 12... Ra6
{[%clk 0:03:01.9]} 13. Qe2 {[%clk 0:02:59.7]} 13... Qa8 {[%clk 0:03:01.4]} 14.
Ra3 {[%clk 0:03:00.2]} 14... e6 {[%clk 0:02:50.7]} 15. Rd1 {[%clk 0:02:54.6]}
15... exd5 {[%clk 0:02:43.2]} 16. exd5 {[%clk 0:02:47.5]} 16... Nb6 {[%clk
0:02:43.2]} 17. Bg5 {[%clk 0:02:42.1]} 17... Nfxd5 {[%clk 0:02:38.7]} 18. Nxd5
{[%clk 0:02:43]} 18... Nxd5 {[%clk 0:02:38.4]} 19. Rxd5 {[%clk 0:02:40.5]} 19...
Qxd5 {[%clk 0:02:28.5]} 20. Qxa6 {[%clk 0:02:40.1]} 20... Bxb2 {[%clk
0:02:09.7]} 21. Rd3 {[%clk 0:02:39.3]} 21... Bd4 {[%clk 0:02:08.9]} 22. Be3
{[%clk 0:02:31.3]} 22... Ra8 {[%clk 0:02:03.4]} 23. Qb5 {[%clk 0:02:30.4]} 23...
Qe4 {[%clk 0:01:52.8]} 24. Bxd4 {[%clk 0:02:29.1]} 1-0

[Event "*** SCC Grand Prix: Titled Tuesday Blitz"]
[Site "Chess.com"]
[Date "2020.07.07"]
[Round "6"]
[White "Sam_ChessMood"]
[Black "ZiggyStardust64"]
[Result "1-0"]
[WhiteElo "2847"]
[BlackElo "2674"]
[TimeControl "180+1"]
[EndTime "11:02:44 PDT"]
[Termination "Sam_ChessMood won by resignation"]

1. e4 {[%clk 0:03:00.9]} 1... e6 {[%clk 0:03:00.3]} 2. d4 {[%clk 0:03:00.7]}
2... d5 {[%clk 0:03:00.8]} 3. Nc3 {[%clk 0:03:01]} 3... Nf6 {[%clk 0:03:00.4]}
4. e5 {[%clk 0:03:00.9]} 4... Nfd7 {[%clk 0:03:00.4]} 5. f4 {[%clk 0:03:01.3]}
5... c5 {[%clk 0:03:00.4]} 6. Nf3 {[%clk 0:03:01.2]} 6... Nc6 {[%clk 0:03:00.5]}
7. Be3 {[%clk 0:03:01.5]} 7... Be7 {[%clk 0:03:00.9]} 8. Qd2 {[%clk 0:03:01.5]}
8... O-O {[%clk 0:03:01.2]} 9. dxc5 {[%clk 0:03:01.9]} 9... Qa5 {[%clk
0:03:01.5]} 10. O-O-O {[%clk 0:02:58.3]} 10... b6 {[%clk 0:03:01.7]} 11. Bb5
{[%clk 0:02:58.3]} 11... Nb4 {[%clk 0:03:01.9]} 12. a3 {[%clk 0:02:55.9]} 12...
bxc5 {[%clk 0:03:02.1]} 13. Kb1 {[%clk 0:02:56.3]} 13... Nb6 {[%clk 0:03:01.1]}
14. f5 {[%clk 0:02:22.1]} 14... Rb8 {[%clk 0:03:00]} 15. f6 {[%clk 0:02:03.3]}
15... gxf6 {[%clk 0:02:11.4]} 16. Bh6 {[%clk 0:02:01.9]} 16... a6 {[%clk
0:01:30.1]} 17. Qf4 {[%clk 0:01:55.2]} 17... f5 {[%clk 0:01:24.4]} 18. Qg3+
{[%clk 0:01:54.5]} 1-0

[Event "*** SCC Grand Prix: Titled Tuesday Blitz"]
[Site "Chess.com"]
[Date "2020.07.07"]
[Round "6"]
[White "sewin16"]
[Black "Karina_Ivanova"]
[Result "1-0"]
[WhiteElo "2413"]
[BlackElo "2223"]
[TimeControl "180+1"]
[EndTime "11:02:52 PDT"]
[Termination "sewin16 won by resignation"]

1. e4 {[%clk 0:03:00.9]} 1... c6 {[%clk 0:02:59.6]} 2. d4 {[%clk 0:03:00]} 2...
d5 {[%clk 0:02:59.5]} 3. Nc3 {[%clk 0:03:00.3]} 3... dxe4 {[%clk 0:02:58.7]} 4.
Nxe4 {[%clk 0:03:00.8]} 4... Bf5 {[%clk 0:02:58]} 5. Ng3 {[%clk 0:03:00.6]} 5...
Bg6 {[%clk 0:02:57.1]} 6. h4 {[%clk 0:03:01]} 6... h6 {[%clk 0:02:56.6]} 7. Nf3
{[%clk 0:03:01.1]} 7... Nd7 {[%clk 0:02:56.1]} 8. h5 {[%clk 0:03:01.4]} 8... Bh7
{[%clk 0:02:56.1]} 9. Bd3 {[%clk 0:03:01.9]} 9... Bxd3 {[%clk 0:02:55.6]} 10.
Qxd3 {[%clk 0:03:02.8]} 10... e6 {[%clk 0:02:55.5]} 11. Bf4 {[%clk 0:03:02.4]}
11... Qa5+ {[%clk 0:02:55.2]} 12. Bd2 {[%clk 0:03:01]} 12... Qc7 {[%clk
0:02:55.6]} 13. O-O-O {[%clk 0:03:00.4]} 13... Ngf6 {[%clk 0:02:55.5]} 14. Kb1
{[%clk 0:02:59.9]} 14... O-O-O {[%clk 0:02:55]} 15. Qe2 {[%clk 0:02:57.3]} 15...
c5 {[%clk 0:02:52.7]} 16. dxc5 {[%clk 0:02:55.5]} 16... Bxc5 {[%clk 0:02:50.7]}
17. c4 {[%clk 0:02:51.5]} 17... a6 {[%clk 0:02:44.5]} 18. Bc3 {[%clk 0:02:50.7]}
18... Qb6 {[%clk 0:02:30]} 19. Rd2 {[%clk 0:02:34]} 19... Rhe8 {[%clk
0:02:18.3]} 20. Rhd1 {[%clk 0:02:32.8]} 20... Nf8 {[%clk 0:02:03.3]} 21. Ne5
{[%clk 0:02:28.3]} 21... Rxd2 {[%clk 0:02:02.9]} 22. Rxd2 {[%clk 0:02:23]} 22...
Re7 {[%clk 0:02:01.9]} 23. Nd3 {[%clk 0:02:07.2]} 23... Bd4 {[%clk 0:01:58]} 24.
c5 {[%clk 0:01:56.9]} 24... Bxc5 {[%clk 0:01:57.5]} 25. Nxc5 {[%clk 0:01:56.4]}
25... Qxc5 {[%clk 0:01:57.2]} 26. Bxf6 {[%clk 0:01:56.3]} 26... Rc7 {[%clk
0:01:51.9]} 27. Bc3 {[%clk 0:01:47.3]} 1-0

[Event "*** SCC Grand Prix: Titled Tuesday Blitz"]
[Site "Chess.com"]
[Date "2020.07.07"]
[Round "6"]
[White "Smile2005"]
[Black "DishonorOnYourCow"]
[Result "1/2-1/2"]
[WhiteElo "2461"]
[BlackElo "2331"]
[TimeControl "180+1"]
[EndTime "11:03:00 PDT"]
[Termination "Game drawn by agreement"]

1. b3 {[%clk 0:02:55.6]} 1... d5 {[%clk 0:02:59.5]} 2. Bb2 {[%clk 0:02:54]} 2...
c6 {[%clk 0:02:59.6]} 3. e3 {[%clk 0:02:53.9]} 3... Nf6 {[%clk 0:03:00]} 4. f4
{[%clk 0:02:54.4]} 4... g6 {[%clk 0:02:59.6]} 5. Nf3 {[%clk 0:02:54.9]} 5... Bg7
{[%clk 0:02:59.6]} 6. Be2 {[%clk 0:02:55.1]} 6... O-O {[%clk 0:02:59.5]} 7. O-O
{[%clk 0:02:55]} 7... b6 {[%clk 0:02:51.6]} 8. Ne5 {[%clk 0:02:53.5]} 8... c5
{[%clk 0:02:50.3]} 9. d3 {[%clk 0:02:53.1]} 9... Qc7 {[%clk 0:02:48.4]} 10. Nd2
{[%clk 0:02:51.4]} 10... Nc6 {[%clk 0:02:46.2]} 11. Nxc6 {[%clk 0:02:50.3]}
11... Qxc6 {[%clk 0:02:45.7]} 12. Nf3 {[%clk 0:02:50.8]} 12... Bb7 {[%clk
0:02:44.6]} 13. Ne5 {[%clk 0:02:50.7]} 13... Qc7 {[%clk 0:02:42.8]} 14. Qe1
{[%clk 0:02:49.4]} 14... Nd7 {[%clk 0:02:36.8]} 15. Qg3 {[%clk 0:02:48.6]} 15...
Nxe5 {[%clk 0:02:35.1]} 16. fxe5 {[%clk 0:02:48.1]} 16... f6 {[%clk 0:02:23.6]}
17. exf6 {[%clk 0:02:42.7]} 17... Qxg3 {[%clk 0:02:21.4]} 18. hxg3 {[%clk
0:02:35.5]} 18... Bxf6 {[%clk 0:02:20.5]} 19. Bxf6 {[%clk 0:02:34.6]} 19... exf6
{[%clk 0:02:14.2]} 20. Bf3 {[%clk 0:02:25.4]} 20... Rfe8 {[%clk 0:02:06]} 21.
Rae1 {[%clk 0:02:19.7]} 21... Kg7 {[%clk 0:02:03.1]} 22. c4 {[%clk 0:01:56.3]}
22... Rad8 {[%clk 0:02:00.9]} 23. Kf2 {[%clk 0:01:53]} 23... Re7 {[%clk
0:01:55]} 24. Rd1 {[%clk 0:01:45.2]} 1/2-1/2

[Event "*** SCC Grand Prix: Titled Tuesday Blitz"]
[Site "Chess.com"]
[Date "2020.07.07"]
[Round "6"]
[White "GuuBol"]
[Black "luizwas"]
[Result "1-0"]
[WhiteElo "2259"]
[BlackElo "1824"]
[TimeControl "180+1"]
[EndTime "11:03:12 PDT"]
[Termination "GuuBol won by resignation"]

1. e4 {[%clk 0:03:00.9]} 1... e6 {[%clk 0:03:00]} 2. d3 {[%clk 0:03:01]} 2... d5
{[%clk 0:03:00.3]} 3. Nc3 {[%clk 0:02:59.8]} 3... Bb4 {[%clk 0:02:59.1]} 4. Bd2
{[%clk 0:02:58.4]} 4... c5 {[%clk 0:02:56.4]} 5. a3 {[%clk 0:02:55.5]} 5... Bxc3
{[%clk 0:02:55.7]} 6. Bxc3 {[%clk 0:02:55.6]} 6... d4 {[%clk 0:02:54.8]} 7. Bd2
{[%clk 0:02:56]} 7... Nc6 {[%clk 0:02:52.3]} 8. f4 {[%clk 0:02:56.4]} 8... Nf6
{[%clk 0:02:47]} 9. Nf3 {[%clk 0:02:50.5]} 9... Bd7 {[%clk 0:02:44]} 10. g3
{[%clk 0:02:49.1]} 10... O-O {[%clk 0:02:43.1]} 11. Bg2 {[%clk 0:02:49.3]} 11...
Qb6 {[%clk 0:02:41.5]} 12. b3 {[%clk 0:02:44.6]} 12... Rfe8 {[%clk 0:02:38.3]}
13. O-O {[%clk 0:02:44.4]} 13... e5 {[%clk 0:02:37.1]} 14. Qe1 {[%clk
0:02:28.1]} 14... Bg4 {[%clk 0:02:32.8]} 15. h3 {[%clk 0:02:24.8]} 15... Bxf3
{[%clk 0:02:30.9]} 16. Rxf3 {[%clk 0:02:21]} 16... h6 {[%clk 0:02:11.4]} 17. Qf2
{[%clk 0:02:17.1]} 17... Qc7 {[%clk 0:02:06.5]} 18. Rf1 {[%clk 0:02:13.9]} 18...
b5 {[%clk 0:02:05.1]} 19. f5 {[%clk 0:02:08]} 19... a5 {[%clk 0:02:01.1]} 20. a4
{[%clk 0:02:04.4]} 20... bxa4 {[%clk 0:02:00.2]} 21. bxa4 {[%clk 0:02:04.6]}
21... Rab8 {[%clk 0:01:57.4]} 22. g4 {[%clk 0:02:02.3]} 22... Nb4 {[%clk
0:01:57.1]} 23. Qh4 {[%clk 0:01:56.1]} 23... Nxc2 {[%clk 0:01:49]} 24. Bxh6
{[%clk 0:01:47.2]} 24... gxh6 {[%clk 0:01:47.3]} 25. Qxf6 {[%clk 0:01:46.7]}
25... Ne3 {[%clk 0:01:44.2]} 26. Qxh6 {[%clk 0:01:42.1]} 26... Nxf1 {[%clk
0:01:41.4]} 27. f6 {[%clk 0:01:40.9]} 1-0